bitfinex-derivatives/quotes_BNBF0:USTF0_20250810
["timestamp","ask_amount","ask_price","bid_price","bid_amount"]
[1754824727498,0.71874165,798.07,796.38,1.12173733]
[1754824727696,2.76773132,798.17,796.38,1.12173733]
[1754824727900,0.71851393,798.16,796.38,1.12173733]
[1754824728099,0.71851393,798.15,796.38,1.12173733]
[1754824728299,0.71851393,798.14,796.38,1.12173733]
[1754824728502,0.71851393,798.13,796.39,1.12173733]
[1754824728701,0.71842451,798.12,796.39,1.12173733]
[1754824728901,0.71842451,798.11,796.39,1.12173733]
[1754824729099,0.7184283,798.1,796.39,1.12173733]
[1754824729302,0.7184283,798.09,796.39,1.12173733]
[1754824729501,0.7184283,798.08,796.38,1.12173733]
[1754824729703,0.7184283,798.07,796.39,1.12173733]
[1754824729904,0.7184283,798.06,796.31,1.12173733]
[1754824730204,0.7184283,798.05,796.31,1.12173733]
[1754824730405,2.76773132,798.07,796.31,1.12173733]
[1754824731107,0.71851952,798.06,796.31,1.12173733]
[1754824731408,0.71850978,798.05,796.31,1.12173733]
[1754824732009,0.71850978,798.05,796.3,1.12173733]
[1754824732508,2.76773132,798.07,796.3,1.12173733]
[1754824733310,0.71853346,798.06,796.3,1.12173733]
[1754824733610,2.76773132,798.04,796.31,1.12173733]
[1754824733813,2.76773132,798.04,796.21,0.21803213]
[1754824734120,2.76773132,798.46,796.21,0.21803213]
[1754824734913,0.71857171,798.45,796.21,0.21803213]
[1754824735111,0.71857171,798.44,796.21,0.21803213]
[1754824735308,0.71857171,798.43,796.21,0.21803213]
[1754824735615,0.71857171,798.42,796.21,0.21803213]
[1754824735808,0.71857171,798.41,796.21,0.21803213]
[1754824736012,0.71857171,798.4,796.21,0.21803213]
[1754824736214,0.71857171,798.39,796.21,0.21803213]
[1754824736421,0.71857171,798.38,796.21,0.21803213]
[1754824736610,0.71857171,798.37,796.21,0.21803213]
[1754824736814,0.71857171,798.36,796.21,0.21803213]
[1754824737010,0.71857171,798.35,796.21,0.21803213]
[1754824737320,0.71857171,798.34,796.21,0.21803213]
[1754824737510,0.71857171,798.33,796.21,0.21803213]
[1754824737710,0.71857171,798.32,796.21,0.21803213]
[1754824737912,0.71857171,798.31,796.21,0.21803213]
[1754824738211,0.71857171,798.3,796.21,0.21803213]
[1754824738410,0.71857171,798.29,796.21,0.21803213]
[1754824738610,0.71857171,798.28,796.21,0.21803213]
[1754824738811,2.76773132,798.44,796.21,0.21803213]
[1754824738812,0.71857171,798.27,796.21,0.21803213]
[1754824739111,0.71857171,798.26,796.21,0.21803213]
[1754824739414,0.71857171,798.25,796.21,0.21803213]
[1754824739615,0.71857171,798.24,796.21,0.21803213]
[1754824739914,0.71857171,798.23,796.21,0.21803213]
[1754824740115,0.71857171,798.22,796.21,0.21803213]
[1754824740314,0.71857171,798.21,796.21,0.21803213]
[1754824740512,0.71857171,798.2,796.21,0.21803213]
[1754824740711,0.71857171,798.19,796.21,0.21803213]
[1754824740910,0.71857171,798.18,796.21,0.21803213]
[1754824741114,0.71857171,798.17,796.21,0.21803213]
[1754824741321,1.12046741,797.32,796.21,0.21803213]
[1754824741714,1.12046741,797.31,796.21,0.21803213]
[1754824743717,1.12046741,797.18,796.25,1.12173733]
[1754824744517,1.12046741,797.24,796.25,1.12173733]
[1754824744715,1.12046741,797.37,796.21,1.33976946]
[1754824745113,1.12046741,797.37,796.22,1.12173733]
[1754824745314,1.12046741,797.41,796.25,1.12173733]
[1754824746515,1.12046741,797.42,796.24,1.12173733]
[1754824746817,1.12046741,797.52,796.26,1.12173733]
[1754824747018,1.12046741,797.52,796.34,1.12173733]
[1754824747219,1.12046741,797.4,796.43,1.12173733]
[1754824747416,1.12046741,797.44,796.47,1.12173733]
[1754824747620,1.12046741,797.46,796.46,1.12173733]
[1754824748221,1.12046741,797.47,796.45,1.12173733]
[1754824748419,1.12046741,797.49,796.43,1.12173733]
[1754824749421,1.12046741,797.5,796.42,1.12173733]
[1754824749920,1.12046741,797.74,796.66,1.12173733]
[1754824750516,1.12046741,797.75,796.65,1.12173733]
[1754824751418,1.12046741,797.76,796.65,1.12173733]
[1754824751820,1.12046741,797.75,796.64,1.12173733]
[1754824752516,1.12046741,797.76,796.64,1.12173733]
[1754824752720,1.12046741,797.77,796.64,1.12173733]
[1754824753020,1.12046741,797.76,796.63,1.12173733]
[1754824753416,1.12046741,797.77,796.62,1.12173733]
[1754824754419,1.12046741,797.78,796.61,1.12173733]
[1754824755620,1.12046741,797.71,796.66,1.12173733]
[1754824756223,1.12046741,797.9,796.51,1.12173733]
[1754824759324,0.21793928,798.77,796.43,1.12173733]
[1754824759325,1.12046741,797.99,796.43,1.12173733]
[1754824759526,1.12046741,798.08,796.51,1.12173733]
[1754824759927,1.12046741,797.88,796.31,1.12173733]
[1754824760324,1.12046741,797.89,796.3,1.12173733]
[1754824761628,1.12046741,797.9,796.3,1.12173733]
[1754824762526,1.12046741,797.91,796.3,1.12173733]
[1754824762824,1.12046741,797.93,796.31,1.12173733]
[1754824764328,1.12046741,797.94,796.31,1.12173733]
[1754824765527,1.12046741,797.95,796.31,1.12173733]
[1754824766032,1.12046741,797.9,796.35,1.12173733]
[1754824766727,1.12046741,797.91,796.35,1.12173733]
[1754824767030,1.12046741,797.91,796.34,1.12173733]
[1754824767730,1.12046741,797.92,796.34,1.12173733]
[1754824768930,1.12046741,797.82,796.42,1.12173733]
[1754824769128,1.12046741,797.81,796.42,1.12173733]
[1754824769327,1.12046741,797.82,796.42,1.12173733]
[1754824770027,1.12046741,797.86,796.47,1.12173733]
[1754824770425,1.12046741,797.87,796.47,1.12173733]
[1754824770728,1.12046741,797.84,796.5,1.12173733]
[1754824770932,1.12046741,797.84,796.51,1.12173733]
[1754824771526,1.68070112,798.02,796.21,0.21803213]
[1754824771527,1.12046741,797.87,796.5,1.12173733]
[1754824771726,1.12046741,797.91,796.55,1.12173733]
[1754824772430,3.87482385,799.09,796.21,0.21803213]
[1754824772431,1.12046741,797.96,796.58,1.12173733]
[1754824772628,1.12046741,797.95,796.59,1.12173733]
[1754824772831,1.12046741,798.0,796.62,1.12173733]
[1754824773027,1.12046741,798.01,796.63,1.12173733]
[1754824773429,1.12046741,798.04,796.64,1.12173733]
[1754824773828,1.12046741,798.03,796.67,1.12173733]
[1754824774032,1.12046741,798.04,796.7,1.12173733]
[1754824774234,1.12046741,798.13,796.78,1.12173733]
[1754824774430,1.12046741,798.15,796.78,1.12173733]
[1754824774730,1.12046741,798.16,796.79,1.12173733]
[1754824775532,1.12046741,798.18,796.78,1.12173733]
[1754824776436,1.12046741,798.2,796.78,1.12173733]
[1754824776735,1.12046741,798.18,796.76,1.12173733]
[1754824777432,1.12046741,798.2,796.76,1.12173733]
[1754824778135,1.12046741,798.19,796.76,1.12173733]
[1754824778537,2.76773132,799.07,796.76,1.12173733]
[1754824778538,1.12046741,798.21,796.76,1.12173733]
[1754824778736,1.12046741,798.18,796.77,1.12173733]
[1754824779333,1.12046741,798.19,796.77,1.12173733]
[1754824779830,1.12046741,798.15,796.73,1.12173733]
[1754824780532,1.12046741,798.16,796.73,1.12173733]
[1754824781336,1.12046741,798.17,796.73,1.12173733]
[1754824782338,1.12046741,798.18,796.73,1.12173733]
[1754824783239,1.12046741,798.17,796.73,1.12173733]
[1754824783536,1.12046741,798.18,796.73,1.12173733]
[1754824783936,1.12046741,798.08,796.81,1.12173733]
[1754824786543,1.12046741,798.09,796.81,1.12173733]
[1754824786940,1.12046741,798.09,796.21,0.21803213]
[1754824786941,1.12046741,798.15,796.76,1.12173733]
[1754824787241,1.12046741,798.15,796.75,1.12173733]
[1754824787440,1.12046741,798.16,796.75,1.12173733]
[1754824788240,1.12046741,798.19,796.73,1.12173733]
[1754824788944,1.12046741,798.2,796.73,1.12173733]
[1754824789241,1.12046741,798.19,796.73,1.12173733]
[1754824789444,1.12046741,798.2,796.73,1.12173733]
[1754824789945,1.12046741,798.4,796.93,1.12173733]
[1754824791248,1.12046741,798.6,796.9,1.12173733]
[1754824791444,1.12046741,798.63,796.92,1.12173733]
[1754824792145,1.12046741,798.62,796.92,1.12173733]
[1754824792444,1.12046741,798.66,796.94,1.12173733]
[1754824793046,1.12046741,798.65,796.95,1.12173733]
[1754824793250,1.12046741,798.64,796.96,1.12173733]
[1754824793446,1.12046741,798.65,796.95,1.12173733]
[1754824793746,1.12046741,798.64,796.96,1.12173733]
[1754824794349,1.12046741,798.63,796.97,1.12173733]
[1754824794646,1.12046741,798.53,797.08,1.12173733]
[1754824794845,1.12046741,798.55,797.09,1.12173733]
[1754824795249,1.12046741,798.51,797.12,1.12173733]
[1754824795446,1.12046741,798.52,797.12,1.12173733]
[1754824796351,1.12046741,798.51,797.12,1.12173733]
[1754824796550,1.12046741,798.52,797.12,1.12173733]
[1754824797245,1.12046741,798.52,797.11,1.12173733]
[1754824797547,1.12046741,798.53,797.11,1.12173733]
[1754824798148,1.12046741,798.6,797.16,1.12173733]
[1754824798347,1.12046741,798.62,797.18,1.12173733]
[1754824799250,1.12046741,798.61,797.18,1.12173733]
[1754824799451,1.12046741,798.62,797.18,1.12173733]
[1754824799855,1.12046741,798.4,796.95,1.12173733]
[1754824801453,1.12046741,798.41,796.95,1.12173733]
[1754824801655,1.12046741,798.4,796.95,1.12173733]
[1754824802056,1.12046741,798.57,796.81,1.12173733]
[1754824802253,0.21779675,799.34,796.21,0.21803213]
[1754824802254,1.12046741,798.68,796.89,1.12173733]
[1754824802457,1.12046741,798.66,796.89,1.12173733]
[1754824802854,1.12046741,798.66,796.9,1.12173733]
[1754824803053,1.12046741,798.68,796.91,1.12173733]
[1754824803257,1.12046741,798.7,796.91,1.12173733]
[1754824803457,1.12046741,798.69,796.92,1.12173733]
[1754824803658,1.12046741,798.7,796.91,1.12173733]
[1754824804155,1.12046741,798.71,796.91,1.12173733]
[1754824804355,1.12046741,798.69,796.93,1.12173733]
[1754824805256,1.12046741,798.71,796.92,1.12173733]
[1754824805461,1.12046741,798.7,796.93,1.12173733]
[1754824806258,1.12046741,798.71,796.92,1.12173733]
[1754824806457,1.12046741,798.7,796.93,1.12173733]
[1754824807365,1.12046741,798.71,796.92,1.12173733]
[1754824808268,1.68070112,798.93,796.92,1.12173733]
[1754824808269,1.12046741,798.72,796.92,1.12173733]
[1754824808570,1.12046741,798.63,796.99,1.12173733]
[1754824808766,1.12046741,798.59,797.02,1.12173733]
[1754824808966,1.12046741,798.55,797.06,1.12173733]
[1754824809166,1.12046741,798.56,797.06,1.12173733]
[1754824809563,1.12046741,798.55,797.06,1.12173733]
[1754824809863,1.12046741,798.6,797.11,1.12173733]
[1754824810363,1.12046741,798.59,797.12,1.12173733]
[1754824810663,1.12046741,798.6,797.12,1.12173733]
[1754824810873,1.12046741,798.61,797.13,1.12173733]
[1754824811266,1.12046741,798.62,797.13,1.12173733]
[1754824811463,1.12046741,798.61,797.13,1.12173733]
[1754824811965,1.12046741,798.64,797.11,1.12173733]
[1754824812168,1.12046741,798.66,797.13,1.12173733]
[1754824812368,1.12046741,798.68,797.14,1.12173733]
[1754824812663,1.12046741,798.68,796.98,1.682606]
[1754824812664,1.12046741,798.7,797.17,1.12173733]
[1754824812864,0.21776949,799.42,797.18,1.12173733]
[1754824812865,1.12046741,798.69,797.18,1.12173733]
[1754824813069,1.12046741,798.74,797.14,1.12173733]
[1754824814266,1.12046741,798.75,797.14,1.12173733]
[1754824814566,1.12046741,798.74,797.14,1.12173733]
[1754824815168,1.12046741,798.75,797.14,1.12173733]
[1754824815367,1.12046741,798.76,797.14,1.12173733]
[1754824815668,1.12046741,798.75,797.15,1.12173733]
[1754824816171,1.12046741,798.76,797.14,1.12173733]
[1754824816371,1.12046741,798.75,797.15,1.12173733]
[1754824817172,1.12046741,798.76,797.14,1.12173733]
[1754824817675,1.12046741,798.75,797.15,1.12173733]
[1754824818174,1.12046741,798.75,797.14,1.12173733]
[1754824818378,1.12046741,798.74,797.15,1.12173733]
[1754824819877,1.12046741,798.73,797.15,1.12173733]
[1754824820176,1.12046741,798.74,797.15,1.12173733]
[1754824820372,1.12046741,798.73,797.15,1.12173733]
[1754824821977,1.12046741,798.71,797.16,1.12173733]
[1754824822376,1.12046741,798.7,797.16,1.12173733]
[1754824822685,1.12046741,798.68,797.14,1.12173733]
[1754824822880,0.21776949,799.42,796.3,2.80434333]
[1754824822881,1.12046741,798.58,797.23,1.12173733]
[1754824823679,1.12046741,798.57,797.23,1.12173733]
[1754824824175,1.12046741,798.59,797.25,1.12173733]
[1754824824376,1.12046741,798.58,797.25,1.12173733]
[1754824825276,1.12046741,798.59,797.25,1.12173733]
[1754824825477,1.12046741,798.57,797.25,1.12173733]
[1754824826182,1.12046741,798.58,797.25,1.12173733]
[1754824826381,1.12046741,798.56,797.25,1.12173733]
[1754824827578,1.12046741,798.55,797.25,1.12173733]
[1754824827776,1.12046741,798.65,797.17,1.12173733]
[1754824828283,1.12046741,798.66,797.17,1.12173733]
[1754824828583,1.12046741,798.64,797.17,1.12173733]
[1754824829380,1.12046741,798.62,797.18,1.12173733]
[1754824829879,1.12046741,798.63,797.19,1.12173733]
[1754824830380,1.12046741,798.61,797.19,1.12173733]
[1754824831484,1.68070112,798.78,796.35,2.80434333]
[1754824831485,1.12046741,798.59,797.2,1.12173733]
[1754824831980,1.12046741,798.59,797.19,1.12173733]
[1754824832585,0.21776949,799.42,797.19,1.12173733]
[1754824832586,1.12046741,798.58,797.19,1.12173733]
[1754824833382,1.12046741,798.57,797.2,1.12173733]
[1754824833885,1.12046741,798.62,797.24,1.12173733]
[1754824834284,1.12046741,798.63,797.24,1.12173733]
[1754824834481,1.12046741,798.62,797.24,1.12173733]
[1754824835184,1.12046741,798.63,797.24,1.12173733]
[1754824835481,1.12046741,798.66,797.27,1.12173733]
[1754824837283,1.12046741,798.67,797.27,1.12173733]
[1754824837482,1.12046741,798.66,797.27,1.12173733]
[1754824837886,1.12046741,798.61,797.31,1.12173733]
[1754824838392,1.12046741,798.6,797.32,1.12173733]
[1754824838890,1.12046741,798.59,797.32,1.12173733]
[1754824839285,1.12046741,798.58,797.32,1.12173733]
[1754824839688,1.12046741,798.58,797.33,1.12173733]
[1754824839887,1.12046741,798.58,797.18,1.682606]
[1754824839888,1.12046741,798.75,797.49,1.12173733]
[1754824840489,1.12046741,798.74,797.49,1.12173733]
[1754824841287,1.12046741,798.75,797.49,1.12173733]
[1754824841486,1.12046741,798.74,797.49,1.12173733]
[1754824842086,1.12046741,798.7,797.52,1.12173733]
[1754824842491,1.12046741,798.69,797.52,1.12173733]
[1754824842988,1.12046741,798.71,797.5,1.12173733]
[1754824843398,1.12046741,798.71,797.51,1.12173733]
[1754824843601,1.12046741,798.71,797.52,1.12173733]
[1754824843893,1.12046741,798.86,797.55,1.12173733]
[1754824844290,1.12046741,799.25,797.25,1.12173733]
[1754824844593,1.12046741,799.43,797.65,1.12173733]
[1754824844803,1.12046741,799.44,797.63,1.12173733]
[1754824845295,1.12046741,799.41,797.59,1.12173733]
[1754824845494,1.12046741,799.4,797.6,1.12173733]
[1754824846091,1.12046741,799.38,797.61,1.12173733]
[1754824846291,1.12046741,799.41,797.61,1.12173733]
[1754824846494,1.12046741,799.4,797.61,1.12173733]
[1754824847192,1.12046741,799.43,797.61,1.12173733]
[1754824847393,1.12046741,799.41,797.61,1.12173733]
[1754824848292,1.12046741,799.42,797.61,1.12173733]
[1754824849297,1.12046741,799.44,797.61,1.12173733]
[1754824849493,1.12046741,799.43,797.61,1.12173733]
[1754824850004,1.12046741,799.18,797.36,1.12173733]
[1754824850192,1.12046741,799.2,797.36,1.12173733]
[1754824850598,1.12046741,799.19,797.36,1.12173733]
[1754824851293,1.12046741,799.21,797.36,1.12173733]
[1754824851498,1.12046741,799.17,797.38,1.12173733]
[1754824852198,1.12046741,799.19,797.38,1.12173733]
[1754824852498,1.12046741,799.18,797.38,1.12173733]
[1754824852993,1.12046741,799.01,797.57,1.12173733]
[1754824853196,1.12046741,799.04,797.58,1.12173733]
[1754824853392,1.12046741,799.03,797.65,1.12173733]
[1754824853598,1.12046741,799.04,797.64,1.12173733]
[1754824854295,1.12046741,799.06,797.64,1.12173733]
[1754824854598,1.12046741,799.05,797.64,1.12173733]
[1754824855198,1.12046741,799.07,797.64,1.12173733]
[1754824855495,1.12046741,799.09,797.62,1.12173733]
[1754824855896,1.12046741,799.31,797.47,1.12173733]
[1754824856298,1.12046741,799.33,797.47,1.12173733]
[1754824856998,1.12046741,799.33,797.46,1.12173733]
[1754824857196,1.12046741,799.35,797.46,1.12173733]
[1754824857397,1.12046741,799.39,797.5,1.12173733]
[1754824858201,1.12046741,799.4,797.49,1.12173733]
[1754824859399,0.21759384,800.12,797.49,1.12173733]
[1754824859400,1.12046741,799.41,797.49,1.12173733]
[1754824859900,1.12046741,799.51,797.59,1.12173733]
[1754824860999,1.12046741,799.5,797.59,1.12173733]
[1754824861405,1.12046741,799.51,797.61,1.12173733]
[1754824861605,1.12046741,799.53,797.6,1.12173733]
[1754824862501,1.12046741,799.54,797.6,1.12173733]
[1754824863402,1.12046741,799.55,797.6,1.12173733]
[1754824863704,1.12046741,799.44,797.69,1.12173733]
[1754824863905,1.68070112,799.64,796.85,0.21762718]
[1754824863906,1.12046741,799.35,797.76,1.12173733]
[1754824864606,1.12046741,799.36,797.76,1.12173733]
[1754824865102,1.12046741,799.35,797.77,1.12173733]
[1754824865602,1.12046741,799.36,797.77,1.12173733]
[1754824866405,1.12046741,799.36,797.76,1.12173733]
[1754824866706,1.12046741,799.23,797.62,1.12173733]
[1754824867003,1.12046741,799.12,797.53,1.12173733]
[1754824867205,1.12046741,799.11,797.52,1.12173733]
[1754824867400,1.68070112,799.27,797.52,1.12173733]
[1754824867401,1.12046741,799.1,797.52,1.12173733]
[1754824867604,1.68070112,799.27,797.52,1.12173733]
[1754824867605,1.12046741,799.11,797.52,1.12173733]
[1754824867802,1.12046741,799.1,797.52,1.12173733]
[1754824869605,1.12046741,799.09,797.52,1.12173733]
[1754824870003,1.12046741,799.07,797.5,1.12173733]
[1754824870206,1.12046741,799.06,797.5,1.12173733]
[1754824872203,1.12046741,799.05,797.5,1.12173733]
[1754824872804,1.12046741,799.07,797.52,1.12173733]
[1754824873506,1.12046741,799.09,797.71,1.12173733]
[1754824874408,1.12046741,799.09,797.72,1.12173733]
[1754824875108,1.12046741,799.08,797.71,1.12173733]
[1754824875707,1.12046741,799.09,797.7,1.12173733]
[1754824876308,1.12046741,799.18,797.64,1.12173733]
[1754824877509,1.12046741,799.21,797.62,1.12173733]
[1754824878206,1.12046741,799.2,797.62,1.12173733]
[1754824878404,1.12046741,799.13,797.54,1.12173733]
[1754824879210,1.12046741,799.12,797.54,1.12173733]
[1754824879411,1.12046741,799.1,797.52,1.12173733]
[1754824879609,1.12046741,799.03,797.51,1.12173733]
[1754824879812,1.12046741,799.04,797.47,1.12173733]
[1754824880513,1.12046741,799.03,797.47,1.12173733]
[1754824881511,1.12046741,799.02,797.47,1.12173733]
[1754824882014,1.12046741,799.04,797.49,1.12173733]
[1754824882914,1.12046741,799.04,797.5,1.12173733]
[1754824883615,1.12046741,799.03,797.5,1.12173733]
[1754824884120,1.12046741,798.97,797.55,1.12173733]
[1754824884320,1.12046741,798.9,797.6,1.12173733]
[1754824884619,1.12046741,798.9,797.61,1.12173733]
[1754824884822,1.12046741,799.09,797.62,1.12173733]
[1754824885121,1.12046741,799.08,797.62,1.12173733]
[1754824886222,2.76773132,799.92,796.85,0.21762718]
[1754824886223,1.12046741,799.05,797.6,1.12173733]
[1754824887222,1.12046741,799.04,797.61,1.12173733]
[1754824888218,1.12046741,799.03,797.61,1.12173733]
[1754824888422,1.12046741,799.02,797.61,1.12173733]
[1754824889220,1.12046741,799.01,797.61,1.12173733]
[1754824889423,1.12046741,799.06,797.66,1.12173733]
[1754824890020,1.12046741,799.25,797.85,1.12173733]
[1754824890220,1.12046741,799.25,797.86,1.12173733]
[1754824891219,1.12046741,799.24,797.86,1.12173733]
[1754824891424,1.12046741,799.23,797.87,1.12173733]
[1754824891720,1.12046741,799.23,797.86,1.12173733]
[1754824892223,1.12046741,799.22,797.87,1.12173733]
[1754824893024,1.12046741,799.19,797.89,1.12173733]
[1754824893323,1.12046741,799.17,797.89,1.12173733]
[1754824893824,1.12046741,799.18,797.9,1.12173733]
[1754824894124,1.12046741,799.21,798.03,1.12173733]
[1754824894324,1.12046741,799.21,798.04,1.12173733]
[1754824895225,1.12046741,799.2,798.04,1.12173733]
[1754824895925,1.12046741,799.21,798.04,1.12173733]
[1754824896325,1.12046741,799.2,798.05,1.12173733]
[1754824897222,1.12046741,799.18,798.05,1.12173733]
[1754824897427,1.12046741,799.19,798.05,1.12173733]
[1754824897727,1.12046741,799.25,798.04,1.12173733]
[1754824898126,1.12046741,799.23,798.04,1.12173733]
[1754824898330,1.12046741,799.29,798.09,1.12173733]
[1754824898531,1.12046741,799.3,798.09,1.12173733]
[1754824898732,2.76773132,800.0,796.97,3.92608066]
[1754824898733,1.12046741,799.31,798.1,1.12173733]
[1754824899128,1.12046741,799.3,798.11,1.12173733]
[1754824899331,1.12046741,799.28,798.12,1.12173733]
[1754824899631,1.12046741,799.29,798.12,1.12173733]
[1754824900031,1.12046741,799.04,797.87,1.12173733]
[1754824900225,1.12046741,799.02,797.87,1.12173733]
[1754824900428,1.12046741,799.03,797.87,1.12173733]
[1754824901332,1.12046741,799.01,797.88,1.12173733]
[1754824901532,1.12046741,799.02,797.88,1.12173733]
[1754824902230,1.12046741,798.99,797.88,1.12173733]
[1754824902529,1.12046741,799.0,797.88,1.12173733]
[1754824903233,1.12046741,798.98,797.89,1.12173733]
[1754824903531,1.12046741,798.99,797.89,1.12173733]
[1754824904132,1.12046741,798.98,797.89,1.12173733]
[1754824904333,1.12046741,798.98,797.9,1.12173733]
[1754824904630,1.12046741,798.98,797.89,1.12173733]
[1754824905334,1.12046741,798.99,797.89,1.12173733]
[1754824906336,1.12046741,799.1,797.9,1.12173733]
[1754824906833,1.12046741,799.12,797.91,1.12173733]
[1754824907032,1.12046741,799.14,797.92,1.12173733]
[1754824907534,1.12046741,799.15,797.91,1.12173733]
[1754824908532,2.76773132,800.04,797.91,1.12173733]
[1754824908533,1.12046741,799.16,797.91,1.12173733]
[1754824909238,1.12046741,799.17,797.91,1.12173733]
[1754824910041,1.12046741,799.23,797.96,1.12173733]
[1754824910336,1.12046741,799.25,797.95,1.12173733]
[1754824910935,1.12046741,799.24,797.96,1.12173733]
[1754824911440,1.12046741,799.25,797.96,1.12173733]
[1754824912436,1.12046741,799.24,797.96,1.12173733]
[1754824912640,1.12046741,799.25,797.96,1.12173733]
[1754824913441,1.12046741,799.26,797.96,1.12173733]
[1754824915040,1.12046741,799.66,797.47,1.12173733]
[1754824915544,1.12046741,799.69,797.5,1.12173733]
[1754824916140,1.12046741,799.67,797.48,1.12173733]
[1754824917240,1.12046741,799.68,797.48,1.12173733]
[1754824919947,1.12046741,799.84,797.64,1.12173733]
[1754824920147,0.69238439,799.83,797.64,1.12173733]
[1754824920447,0.69238439,799.82,797.64,1.12173733]
[1754824920643,1.12046741,799.84,797.64,1.12173733]
[1754824920843,0.69238089,799.83,797.64,1.12173733]
[1754824921047,1.12046741,799.75,797.72,1.12173733]
[1754824921244,1.12046741,799.66,797.82,1.12173733]
[1754824921749,1.12046741,799.49,798.01,1.12173733]
[1754824921949,1.12046741,799.53,798.05,1.12173733]
[1754824922645,1.12046741,799.47,798.1,1.12173733]
[1754824924350,1.12046741,799.48,798.1,1.12173733]
[1754824924850,1.12046741,799.42,798.15,1.12173733]
[1754824925147,1.12046741,799.39,798.18,1.12173733]
[1754824926553,1.12046741,799.4,798.18,1.12173733]
[1754824927049,1.12046741,799.39,798.18,1.12173733]
[1754824928756,1.12046741,799.64,797.67,1.12173733]
[1754824929154,0.21754215,800.24,797.7,1.12173733]
[1754824929155,1.12046741,799.61,797.7,1.12173733]
[1754824929451,1.12046741,799.59,797.71,1.12173733]
[1754824930052,1.12046741,799.35,797.57,1.12173733]
[1754824930255,1.12046741,799.33,797.58,1.12173733]
[1754824930455,1.12046741,799.27,797.63,1.12173733]
[1754824930756,1.12046741,799.32,797.89,1.12173733]
[1754824931053,1.12046741,799.3,797.91,1.12173733]
[1754824931255,1.12046741,799.29,797.92,1.12173733]
[1754824931556,1.12046741,799.28,797.92,1.12173733]
[1754824931856,1.12046741,799.27,797.86,1.12173733]
[1754824933156,1.12046741,799.28,797.59,1.12173733]
[1754824933952,1.12046741,799.29,797.6,1.12173733]
[1754824934155,1.12046741,799.3,797.61,1.12173733]
[1754824934653,1.12046741,799.29,797.61,1.12173733]
[1754824934856,1.12046741,799.3,797.61,1.12173733]
[1754824935457,1.12046741,799.29,797.61,1.12173733]
[1754824935951,1.12046741,799.29,796.85,0.21762718]
[1754824935952,1.12046741,799.29,797.62,1.12173733]
[1754824936156,1.12046741,799.28,797.62,1.12173733]
[1754824936557,1.12046741,799.29,797.62,1.12173733]
[1754824937355,1.12046741,799.28,797.62,1.12173733]
[1754824937955,1.12046741,799.28,797.37,1.682606]
[1754824937956,1.12046741,799.25,797.59,1.12173733]
[1754824938260,1.12046741,799.25,797.6,1.12173733]
[1754824938456,1.12046741,799.23,797.61,1.12173733]
[1754824938759,1.12046741,799.24,797.6,1.12173733]
[1754824938959,1.12046741,799.23,797.58,1.12173733]
[1754824939159,1.12046741,799.23,797.59,1.12173733]
[1754824939858,1.12046741,799.21,797.6,1.12173733]
[1754824940155,1.12046741,799.28,797.67,1.12173733]
[1754824940455,1.12046741,799.27,797.67,1.12173733]
[1754824941459,1.12046741,799.25,797.68,1.12173733]
[1754824942356,1.12046741,799.24,797.68,1.12173733]
[1754824942660,1.12046741,799.23,797.67,1.12173733]
[1754824942858,1.12046741,799.1,797.78,1.12173733]
[1754824943058,1.12046741,799.05,797.77,1.12173733]
[1754824943255,1.12046741,799.04,797.77,1.12173733]
[1754824943558,1.12046741,799.04,797.78,1.12173733]
[1754824944159,1.12046741,799.03,797.78,1.12173733]
[1754824944460,1.12046741,799.03,797.79,1.12173733]
[1754824944760,1.12046741,799.0,797.65,1.12173733]
[1754824945760,1.12046741,798.92,797.57,1.12173733]
[1754824946063,1.12046741,798.89,797.5,1.12173733]
[1754824947063,1.12046741,798.81,797.47,1.12173733]
[1754824947258,1.12046741,798.83,797.46,1.12173733]
[1754824947464,1.12046741,798.79,797.48,1.12173733]
[1754824948162,1.12046741,798.79,797.49,1.12173733]
[1754824949063,1.12046741,798.83,797.51,1.12173733]
[1754824949859,1.12046741,798.85,797.49,1.12173733]
[1754824950060,1.12046741,798.95,797.59,1.12173733]
[1754824950265,1.12046741,798.96,797.61,1.12173733]
[1754824950563,1.12046741,798.97,797.62,1.12173733]
[1754824950763,1.12046741,798.98,797.6,1.12173733]
[1754824951159,1.12046741,798.99,797.6,1.12173733]
[1754824951965,1.12046741,798.97,797.61,1.12173733]
[1754824952166,1.12046741,799.0,797.61,1.12173733]
[1754824952366,1.12046741,799.01,797.63,1.12173733]
[1754824952865,1.12046741,799.02,797.63,1.12173733]
[1754824953062,1.12046741,799.02,797.64,1.12173733]
[1754824953362,1.12046741,799.03,797.76,1.12173733]
[1754824955067,1.12046741,799.01,797.78,1.12173733]
[1754824955268,1.12046741,799.03,797.8,1.12173733]
[1754824955468,1.12046741,799.06,797.83,1.12173733]
[1754824955765,1.12046741,799.05,797.82,1.12173733]
[1754824956668,2.76773132,799.84,797.73,1.12173733]
[1754824956669,1.12046741,799.01,797.73,1.12173733]
[1754824956868,1.12046741,799.01,797.72,1.12173733]
[1754824958566,1.12046741,799.02,797.72,1.12173733]
[1754824959270,1.12046741,799.01,797.73,1.12173733]
[1754824959471,1.12046741,799.0,797.73,1.12173733]
[1754824960272,1.12046741,799.12,797.85,1.12173733]
[1754824964680,1.12046741,799.14,797.87,1.12173733]